Cogmind - Beta 11 @@@ ROGUE MODE // 2022.03.27 @ 12:46:22 Player: Someone64 Result: Self-destructed Performance ------------- Evolutions (2) 1000 Regions Visited (5) 1000 Robots Destroyed (12) 60 Value Destroyed (203) 203 Prototype IDs (0) 0 Alien Tech Used (0) 0 Bonus (38) 38 TOTAL SCORE: 2301 Bonus ------- Follower Combat Kills 180 Friendly Fire -142 Cogmind --------- Core Integrity 266/550 Matter 300/300 Energy 100/100 System Corruption 0% Temperature Cool (0) Movement Core (50) Location -8/Materials Parts ------- > --- POWER (2) -------- (None) > --- PROPULSION (3) --- (None) > --- UTILITY (4) ------ (None) > --- WEAPON (2) ------- (None) > --- INVENTORY (5) ---- Ion Engine Improved Heat Sink Improved Heat Sink Target Analyzer Peak State ------------ > --- POWER ------------ Light Deuterium Engine Light Nuclear Core > --- PROPULSION ------- Flight Unit Flight Unit Flight Unit > --- UTILITY ---------- Sensor Array Improved Terrain Scanner Target Analyzer > --- WEAPON ----------- Assault Rifle Makeshift Shrapnel Gun > --- INVENTORY -------- Ion Engine Hover Unit Improved Heat Sink Improved Heat Sink Target Analyzer [Rating: 22] Favorites ----------- Power Ion Engine Engine Ion Engine Power Core Light Nuclear Core Propulsion Wheel Leg Aluminum Leg Wheel Wheel Hover Unit Hover Unit Flight Unit Flight Unit Utility Improved Terrain Scanner Device Improved Terrain Scanner Storage Medium Storage Unit Processor Target Analyzer Protection Insulated Plating Weapon Assault Rifle Energy Gun Particle Gun Ballistic Gun Assault Rifle Build | -11 -10 -10 -9 -9 -8 ------- Run | Scr Mat Min Mat Min Mat Slots Evolved 4 | . . . 2 . 2 Power 1 | . . . . . 1 Propulsion 1 | . . . 1 . . Utility 2 | . . . 1 . 1 Weapon . | . . . . . . Parts Attached 32 | 8 1 . 19 1 3 Power 4 | 1 . . 2 . 1 Engine 3 | 1 . . 1 . 1 Core 1 | . . . 1 . . Reactor . | . . . . . . Propulsion 12 | 3 . . 8 . 1 Treads . | . . . . . . Leg 4 | . . . 4 . . Wheel 4 | 3 . . 1 . . Hover 1 | . . . . . 1 Flight 3 | . . . 3 . . Utility 9 | 2 1 . 5 . 1 Device 4 | 1 . . 3 . . Storage 3 | 1 1 . 1 . . Processor 1 | . . . 1 . . Hackware . | . . . . . . Protection 1 | . . . . . 1 Artifact . | . . . . . . Weapon 7 | 2 . . 4 1 . Energy Gun 2 | . . . 2 . . Energy Cannon . | . . . . . . Ballistic Gun 5 | 2 . . 2 1 . Ballistic Cannon . | . . . . . . Launcher . | . . . . . . Special Weapon . | . . . . . . Impact Weapon . | . . . . . . Slashing Weapon . | . . . . . . Piercing Weapon . | . . . . . . Special Melee Weapon . | . . . . . . Unidentified Prototypes . | . . . . . . Parts Lost 8 | . . . 2 . 6 Power 1 | . . . . . 1 Propulsion 4 | . . . . . 4 Utility 2 | . . . 1 . 1 Weapon 1 | . . . 1 . . Highest Loss Streak 6 | . . . 2 . 6 To Critical Strikes . | . . . . . . Average Slot Usage (%) 91 | . 100 100 92 100 63 Engine 9 | . 14 14 9 . 4 Core 2 | . . . 1 11 3 Leg 6 | . . . 12 . . Wheel 14 | . 28 28 12 . . Flight 7 | . . . 6 33 18 Device 19 | . 14 14 22 22 16 Storage 8 | . 14 14 9 . . Processor 2 | . . . . 11 9 Energy Gun 5 | . . . 10 . . Ballistic Gun 15 | . 28 28 8 22 7 Naked Turns 4 | . . . . . 4 Heaviest Build 23 | 15 20 20 23 11 16 Greatest Support 30 | 26 20 20 30 12 12 Greatest Overweight (x) 2 | 1 . . 2 . 1 Average Overweight (x) . | . . . . . . Largest Inventory Capacity 10 | 8 10 10 10 5 5 Average Capacity 8 | 7 9 10 9 5 5 Most Carried 10 | 8 9 9 10 5 5 Average Carried 6 | 4 8 9 7 5 4 Final Capacity 10 | 8 10 10 5 5 5 Final Carried 9 | 8 9 9 5 5 4 Class Distribution -------------------- 61% | Mutant 38% | Scavenger-Mutant Dominant Class ---------------- Mutant | -10/Materials Mutant | -10/Mines Scavenger-Mutant | -9/Materials Scavenger-Mutant | -9/Mines Mutant | -8/Materials Resources | -11 -10 -10 -9 -9 -8 ----------- Run | Scr Mat Min Mat Min Mat Matter Collected 609 | 322 . . 247 40 . Remotely . | . . . . . . Salvage Created 340 | 80 . . 260 . . Parts 25 | 8 . . 17 . . Haulers Intercepted . | . . . . . . Recyclers Shooed 1 | . . . 1 . . Parts Field Recycled . | . . . . . . Retrieved Matter . | . . . . . . Parts Self-Destructed . | . . . . . . Prevented . | . . . . . . Kills | -11 -10 -10 -9 -9 -8 ------- Run | Scr Mat Min Mat Min Mat Combat Hostiles Destroyed 7 | . . . 7 . . Guns 7 | . . . 7 . . Classes Destroyed 4 | 1 . . 3 . . Tunneler 3 | 3 . . . . . Watcher 1 | . . . 1 . . Swarmer 3 | . . . 3 . . Grunt 5 | . . . 5 . . Best Kill Streak 3 | 2 . . 3 . . Combat Bots Only 3 | . . . 3 . . Max Kills in Single Turn 1 | 1 . . 1 . . Gunslinging . | . . . . . . Exploded . | . . . . . . Melee . | . . . . . . Uniques/NPCs Destroyed . | . . . . . . Combat | -11 -10 -10 -9 -9 -8 -------- Run | Scr Mat Min Mat Min Mat Damage Taken 1241 | . . . 635 . 606 Core 375 | . . . 91 . 284 Absorbed by Shields . | . . . . . . Core Remaining (%) 92 | 100 . 100 . 77 . Volleys Fired 41 | 7 . . 34 . . Largest 2 | 2 . . 2 . . Hottest 130 | 40 . . 130 . . Shots Fired 81 | 14 . . 67 . . Gun 81 | 14 . . 67 . . Cannon . | . . . . . . Launcher . | . . . . . . Special . | . . . . . . Kinetic 43 | 14 . . 29 . . Thermal 38 | . . . 38 . . Explosive . | . . . . . . Electromagnetic . | . . . . . . Robot Hit Streak 9 | 9 . . 6 . . Robot Miss Streak 4 | 2 . . 4 . . Penetration Max . | . . . . . . Secondary Targets 2 | . . . 2 . . Max Gunslinging Chain 1 | . . . 1 . . Shots Hit Robots 47 | 10 . . 37 . . Core Hits 19 | 3 . . 16 . . Critical Kills . | . . . . . . Critical Parts Destroyed 1 | . . . 1 . . Critical Strikes 1 | . . . 1 . . Destroy 1 | . . . 1 . . Melee Attacks . | . . . . . . Impact . | . . . . . . Slashing . | . . . . . . Piercing . | . . . . . . Sneak Attacks . | . . . . . . Combat Hostiles . | . . . . . . Follow-up Attacks . | . . . . . . Damage Inflicted 707 | 116 . . 591 . . Guns 707 | 116 . . 591 . . Cannons . | . . . . . . Explosions . | . . . . . . Melee . | . . . . . . Ramming . | . . . . . . Kinetic 312 | 116 . . 196 . . Thermal 395 | . . . 395 . . Explosive . | . . . . . . Electromagnetic . | . . . . . . Impact . | . . . . . . Slashing . | . . . . . . Piercing . | . . . . . . Highest Corruption . | . . . . . . Average Corruption . | . . . . . . Corruption Purged . | . . . . . . Corruption Blocked . | . . . . . . Overload Shots . | . . . . . . Overflow Damage . | . . . . . . Projectiles . | . . . . . . Explosions . | . . . . . . Melee . | . . . . . . Knockbacks . | . . . . . . Impact . | . . . . . . Kinetic . | . . . . . . Secondary . | . . . . . . Self-Inflicted Damage . | . . . . . . Shots . | . . . . . . Rammed 1 | . . . . . 1 Targets Rammed 1 | . . . . . 1 Kicked . | . . . . . . Crushed . | . . . . . . Highest Temperature 192 | . . . 192 . . Average Temperature 59 | . . . 59 . . Received Heat Transfer 327 | . . . 282 . 45 Siege Activations . | . . . . . . Robots Corrupted . | . . . . . . Combat Hostiles . | . . . . . . Parts Fried . | . . . . . . Impact Corruptions . | . . . . . . Robots Melted . | . . . . . . Combat Hostiles . | . . . . . . Parts Melted 1 | . . . 1 . . Heat Transferred 925 | . . . 925 . . Parts Sabotaged . | . . . . . . Parts Stolen . | . . . . . . Parts Stripped . | . . . . . . Power Chain Reactions . | . . . . . . Missiles Intercepted . | . . . . . . Alert | -11 -10 -10 -9 -9 -8 ------- Run | Scr Mat Min Mat Min Mat Peak Influence 316 | 15 9 3 316 123 102 Initial 123 | . 9 3 . 123 47 Average 87 | 3 9 3 165 123 67 Maximum Alert Level 1 | . . . 1 . . Low Security (%) 81 | 100 100 100 55 100 100 Level 1 18 | . . . 44 . . Level 2 . | . . . . . . Level 3 . | . . . . . . Level 4 . | . . . . . . Level 5 . | . . . . . . High Security . | . . . . . . Max Security . | . . . . . . Squads Dispatched 3 | . . . 1 . 2 Investigation . | . . . . . . Extermination . | . . . . . . Reinforcement 3 | . . . 1 . 2 Assault . | . . . . . . Garrison . | . . . . . . Intercept . | . . . . . . Searches Triggered . | . . . . . . Construction Impeded . | . . . . . . Haulers Reinforced . | . . . . . . Active Scanning Responses . | . . . . . . Cargo Convoy Interrupts . | . . . . . . Stealth | -11 -10 -10 -9 -9 -8 --------- Run | Scr Mat Min Mat Min Mat Distress Signals 3 | . . . 2 . 1 Communications Jammed . | . . . . . . Distress Signals . | . . . . . . Times Spotted 25 | . . . 16 . 9 Peak Tracking Total 9 | . . . 6 . 9 Tactical Retreats 1 | . . . . . 1 Traps | -11 -10 -10 -9 -9 -8 ------- Run | Scr Mat Min Mat Min Mat Traps Triggered . | . . . . . . Indirectly . | . . . . . . Trap Hack Attempts . | . . . . . . Triggered . | . . . . . . Disarmed . | . . . . . . Reprogrammed . | . . . . . . Reused . | . . . . . . Traps Extracted . | . . . . . . Installed . | . . . . . . Triggered . | . . . . . . Machines | -11 -10 -10 -9 -9 -8 ---------- Run | Scr Mat Min Mat Min Mat Machines Disabled . | . . . . . . Max in Single Turn . | . . . . . . Machines Sabotaged . | . . . . . . Garrisons Compromised . | . . . . . . Overloaded Fab Kills . | . . . . . . Hacking | -11 -10 -10 -9 -9 -8 --------- Run | Scr Mat Min Mat Min Mat Machines Accessed 2 | . . . 1 . 1 Terminals 2 | . . . 1 . 1 Fabricators . | . . . . . . Repair Stations . | . . . . . . Recycling Units . | . . . . . . Scanalyzers . | . . . . . . Garrison Access . | . . . . . . Total Hacks 5 | . . . 2 . 3 Successful . | . . . . . . Failed 5 | . . . 2 . 3 Catastrophic 2 | . . . 1 . 1 Database Lockouts . | . . . . . . Manual 2 | . . . 2 . . Terminals 5 | . . . 2 . 3 Fabricators . | . . . . . . Repair Stations . | . . . . . . Recycling Units . | . . . . . . Scanalyzers . | . . . . . . Garrison Access . | . . . . . . Terminal Hacks . | . . . . . . Fabricator Hacks . | . . . . . . Repair Station Hacks . | . . . . . . Recycling Unit Hacks . | . . . . . . Scanalyzer . | . . . . . . Garrison Access Hacks . | . . . . . . Unauthorized Hacks . | . . . . . . Terminals . | . . . . . . Fabricators . | . . . . . . Repair Stations . | . . . . . . Recycling Units . | . . . . . . Scanalyzers . | . . . . . . Garrison Access . | . . . . . . Data Cores Recovered . | . . . . . . Used . | . . . . . . Hacking Detections 1 | . . . 1 . . Full Trace Events . | . . . . . . Feedback Events . | . . . . . . Feedback Blocked . | . . . . . . Robot Schematics Acquired . | . . . . . . Robots Built . | . . . . . . Authchips . | . . . . . . Time . | . . . . . . Total Robot Build Rating . | . . . . . . Part Schematics Acquired . | . . . . . . Parts Built . | . . . . . . Authchips . | . . . . . . Time . | . . . . . . Total Part Build Rating . | . . . . . . Parts Repaired . | . . . . . . Time . | . . . . . . Parts Recycled . | . . . . . . Recycled Matter . | . . . . . . Retrieved Matter . | . . . . . . Retrieved Components . | . . . . . . Parts Scanalyzed . | . . . . . . Part Schematics Acquired . | . . . . . . Parts Damaged . | . . . . . . Bothacking | -11 -10 -10 -9 -9 -8 ------------ Run | Scr Mat Min Mat Min Mat Used RIF Installer . | . . . . . . Robots Hacked . | . . . . . . Non-combat . | . . . . . . Combat . | . . . . . . Robot Hacks Applied . | . . . . . . Relay Couplers Released . | . . . . . . Fabnet Peak Effective % . | . . . . . . Robots Rewired . | . . . . . . Allies Hacked . | . . . . . . Hacks Repelled . | . . . . . . Allies | -11 -10 -10 -9 -9 -8 -------- Run | Scr Mat Min Mat Min Mat Total Allies 3 | . . 3 . . . Largest Group 3 | . . 3 3 . . Highest-Rated Group 40 | . . 40 40 . . Highest-Rated Ally 16 | . . 16 16 . . Total Orders . | . . . . . . Ally Attacks 23 | . . . 23 . . Total Damage 253 | . . . 253 . . Kills 8 | . . . 8 . . Allies Corrupted . | . . . . . . Allies Melted . | . . . . . . Intel | -11 -10 -10 -9 -9 -8 ------- Run | Scr Mat Min Mat Min Mat Robot Analysis Total . | . . . . . . Derelict Logs Recovered 2 | . . . . 2 . Drone Launches . | . . . . . . Drone Recoveries . | . . . . . . Exploration | -11 -10 -10 -9 -9 -8 ------------- Run | Scr Mat Min Mat Min Mat Turns Passed 766 | 123 54 130 325 56 78 Spaces Moved 773 | 92 61 157 206 145 112 Core 10 | 10 . . . . . Treads . | . . . . . . Legs 46 | . . . 46 . . Wheels 354 | 82 61 157 54 . . Hover 7 | . . . . . 7 Flight 356 | . . . 106 145 105 Fastest Speed 34 | 50 80 80 34 34 34 Average Speed 66 | 86 80 80 77 34 43 Slowest Speed 260 | 100 80 80 260 34 120 Overloaded Moves . | . . . . . . Propulsion Burnouts . | . . . . . . Robots Hopped . | . . . . . . Cave-ins Triggered . | . . . . . . Exploration Rate (%) 22 | 4 16 36 17 44 15 Regions Visited 5 Branch Regions 2 Pre-discovered Areas . | . . . . . . Known Exits Taken . | . . . . . . Unknown Exits Taken 5 | 1 1 1 1 1 . Scrap Searched 1 | . . . . 1 . Spaces Dug . | . . . . . . Terrain Destroyed . | . . . . . . Melee . | . . . . . . Projectile . | . . . . . . AOE . | . . . . . . Terrain Rammed . | . . . . . . Walls Destroyed . | . . . . . . Machines Disabled . | . . . . . . Actions | -11 -10 -10 -9 -9 -8 --------- Run | Scr Mat Min Mat Min Mat Total 943 | 116 66 161 308 151 141 Wait 56 | 2 . 5 21 5 23 Move 768 | 91 60 156 205 144 112 Hop . | . . . . . . Pick Up 19 | 8 3 . 8 . . Fast Attach 17 | 7 . . 7 1 2 Attach 10 | . . . 9 . 1 Detach 6 | . . . 6 . . Swap 5 | 1 1 . 3 . . Drop 20 | . 2 . 15 1 2 Fire 41 | 7 . . 34 . . Melee . | . . . . . . Ram 1 | . . . . . 1 Kick . | . . . . . . Crush . | . . . . . . Escape Stasis . | . . . . . . Rewire . | . . . . . . Trap . | . . . . . . Miscellaneous . | . . . . . . Route ------- -11/Scrapyard -10/Materials -10/Mines -9/Materials -9/Mines -8/Materials History --------- Turn | Location | Event 11 | -11/Scrapyard | Discovered new exit (range 15) 124 | -11/Scrapyard | Entered Materials 166 | -10/Materials | Discovered new exit (range 15) 178 | -10/Materials | Entered Mines 276 | -10/Mines | Discovered new exit (range 13) 294 | -10/Mines | Assisted by bots powering up and referring to "LRC-V3" 300 | -10/Mines | Build established: Mutant 308 | -10/Mines | Entered Materials 308 | -9/Materials | Accompanied by 3 allies 308 | -9/Materials | Evolved 2 slots: Propulsion x1, Utility x1 618 | -9/Materials | Discovered new exit (range 11) 633 | -9/Materials | Entered Mines 642 | -9/Mines | A weapon hastily lodged in a ceiling crevice suddenly fell to the ground 649 | -9/Mines | Learned 2 Materials zone layouts 664 | -9/Mines | Learned Materials stockpile data 673 | -9/Mines | Received a Rocket Launcher from a helpful Derelict 685 | -9/Mines | Discovered new exit (range 14) 689 | -9/Mines | Entered Materials 689 | -8/Materials | Evolved 2 slots: Power x1, Utility x1 767 | -8/Materials | Core integrity fell below 50% 767 | -8/Materials | Self-destructed Last Messages --------------- 00711_ Knocked back. 00711_ ALERT: Hostiles spotted, dispatching reinforcements to Terminal M006. 00713_ Knocked back. 00714_ Dropped Mak. Shrapnel Gun. 00716_ Processing Tank disabled. 00717_ Dropped Lgt. Nuclear Core. 00719_ Processing Tank disabled. 00723_ W-25 Informer sends out distress signal. 00725_ Assault Rifle severed. 00727_ Knocked back. 00727_ Flight Unit destroyed. 00735_ Slammed into C-17 Slicer. 00745_ Acquired Insulated Plating. 00751_ Hover Unit destroyed. 00753_ Sensor Array destroyed. 00754_ Insulated Plating severed. 00756_ Lgt. Deuterium Engine destroyed. 00757_ Flight Unit destroyed. 00762_ Imp. Terrain Scanner severed. 00763_ Target Analyzer severed. Map ----- +----------------------------------------------------+ | """" """" ###### ##??????????????????????? | | """" """"" #### #?????????????????? | | """" """"" ???????????????? | | ####???????????????????? | | ! ##/##??????????????????????? | | ############### #??????????????????????????? | | ??????????????# #??????????????????????????? | | ??????##??????# [#??????????????????????????? | | ? ??? ????????# #??????????????????????????? | | ??????????????# ########???????????????????? | | ?????????????## #/ #???????????????????? | | ?????????##### # #???????????????????? | | ?????????+ #???????????????????? | | ?????????# #???????????????????? | | ?????????##### ! #??? ???????????????? | | ??????????????# # #???????????????????? | | ??????????????# ## #+#####+###?????????????? | | ??????????????# #?????????????? | | ??????????????# #?????????????? | | ??????????????#+#+#########+########????????? | | ????????????????????????# #?????? | | ????????????"???????????# """"" """"" #?????? | | ????????????????????????# """"" """?????????? | | ????????????????????????# """"" """"" #?????? | | ?????????????????????? ?#cc g #?????? | | ????????????????????????#@! g #?????? | | ?????????#???????#??????##############??????? | | | | | | | | | | | | | | | | | | | | | | | | | | | | | | | | | | | | | | | | | | | | | | | +----------------------------------------------------+ Best States ------------- Heat Dissipation 42 Energy Generation 14 Energy Capacity 250 Matter Stores 300 Matter Capacity 300 Sight Range 16 Robot Scan Range 14 Terrain Scan Range 16 Terrain Scan Density 10 Armor Coverage 150 Resistance: EM 15 Evasion (%) 63 Target Analysis 5 Item Schematics ----------------- None Robot Schematics ------------------ None Fabricated ------------ Nothing Alien Tech Used ----------------- None Achievements -------------- None Challenges ------------ None Game ------ Seed ReactiveMachineNeutralizer Manual? 0 Play Time 00:20:39 Cumulative 13.7 hours Start 2022.03.27 @ 12:28:16 End 2022.03.27 @ 12:46:22 Sessions 1 Manual Loads 0 Difficulty Rogue Special Mode None Game No. 37 Rogue 37 Adventurer 0 Explorer 0 Win Type - Total 0 Types 0/0/0/0/0/0/0/0/0 Lore% 17 Gallery% 23 Achievement% 19 Wizard Run 0 Options --------- ASCII 0 Keyboard 1 Movement Numpad Keybinds 0 Fullscreen 1 Font 14/SmallcapsGlow Map View 84x54 Tactical HUD 1 Map Filters NONE Filters NONE Steam 1 RUN: f7602dfb-83a8-4c5b-9247-acf3ac9c3470